bitfinex/quotes_ETHUSD_20250422
["timestamp","ask_amount","ask_price","bid_price","bid_amount"]
[1745292007889,6.48182324,1575.4,1575.3,5.692]
[1745292011388,12.56182324,1575.4,1575.3,5.692]
[1745292011690,12.56182324,1575.4,1574.9,8.693]
[1745292011691,6.34889184,1575.1,1574.9,8.693]
[1745292011989,0.12414748,1575.0,1574.9,8.693]
[1745292012490,0.12414748,1575.0,1574.9,5.693]
[1745292012892,0.08018241,1575.0,1574.9,5.693]
[1745292013070,0.12048372,1575.0,1574.9,5.693]
[1745292013271,0.12048372,1575.0,1574.9,6.2953557]
[1745292014887,6.46969006,1575.0,1574.9,6.2953557]
[1745292015587,0.12048372,1575.0,1574.9,6.2953557]
[1745292015967,7.11213721,1575.3,1574.9,12.64481793]
[1745292016165,7.11213721,1575.3,1574.9,15.64481793]
[1745292016166,0.12048372,1575.0,1574.9,15.64481793]
[1745292016367,7.11213721,1575.3,1574.9,15.64481793]
[1745292016574,7.11213721,1575.3,1575.0,1.56448179]
[1745292016898,0.12048372,1575.2,1575.0,1.56448179]
[1745292017058,6.46888993,1575.2,1575.0,1.56448179]
[1745292017787,6.34880325,1575.1,1575.0,1.56448179]
[1745292018297,6.46928697,1575.1,1575.0,1.56448179]
[1745292018997,0.12048372,1575.1,1575.0,1.56448179]
[1745292019363,6.34840621,1575.2,1575.0,1.56448179]
[1745292019583,0.12048372,1575.1,1575.0,7.91368813]
[1745292019795,0.12048372,1575.1,1575.0,10.97717009]
[1745292020106,6.34772375,1575.4,1575.1,0.8322]
[1745292020396,6.34772375,1575.4,1575.1,8.05553825]
[1745292020567,0.12048372,1575.3,1575.1,1.70676484]
[1745292021204,0.12048372,1575.3,1575.1,4.70676484]
[1745292022495,0.12048372,1575.3,1575.1,11.05556268]
[1745292024337,6.4684913,1575.3,1575.1,4.70676484]
[1745292024491,6.4684913,1575.3,1575.1,3.0]
[1745292025011,0.12048372,1575.3,1575.1,3.0]
[1745292025413,0.12048372,1575.3,1575.1,9.34877043]
[1745292025927,0.7935,1575.2,1574.9,6.2953557]
[1745292026123,6.46873753,1575.3,1574.9,12.64484345]
[1745292026322,6.34782005,1575.4,1575.1,6.34866616]
[1745292026500,6.34782005,1575.4,1575.0,12.09986821]
[1745292027116,6.34782005,1575.4,1575.1,6.34878632]
[1745292027313,7.14094925,1575.5,1575.1,6.3485934]
[1745292027515,12.42696664,1575.6,1575.2,10.01397962]
[1745292027516,6.34696664,1575.6,1575.2,10.01397962]
[1745292027706,6.34696664,1575.6,1575.3,12.85954382]
[1745292027999,13.22008791,1575.7,1575.3,12.85936686]
[1745292028615,0.7935,1575.7,1575.4,6.34750581]
[1745292028817,6.34622277,1575.8,1575.4,6.34732454]
[1745292029331,6.3462468,1575.8,1575.4,6.34738938]
[1745292029500,6.3462468,1575.8,1575.4,8.26806981]
[1745292029700,6.3464015,1575.7,1575.4,1.92068043]
[1745292030837,6.34621715,1575.8,1575.4,8.2681903]
[1745292031038,6.34577884,1575.9,1575.5,13.51436595]
[1745292031248,6.34577884,1575.9,1575.6,7.6982062]
[1745292031543,6.34577884,1575.9,1575.7,5.691]
[1745292031722,12.69169797,1575.9,1575.7,5.691]
[1745292032043,6.34577884,1575.9,1575.7,5.691]
[1745292032415,6.34598299,1575.8,1575.7,5.691]
[1745292033310,7.13948299,1575.8,1575.7,5.691]
[1745292033537,8.40865917,1575.8,1575.7,5.691]
[1745292034036,6.34717839,1575.6,1575.4,5.691]
[1745292034714,6.34715946,1575.6,1575.4,5.691]
[1745292035334,6.34719136,1575.5,1575.4,5.691]
[1745292035555,6.34715946,1575.6,1575.4,5.691]
[1745292035850,6.34715946,1575.6,1575.4,6.34216]
[1745292036444,6.34719136,1575.5,1575.4,6.34216]
[1745292036934,6.34712684,1575.6,1575.4,6.34216]
[1745292037343,13.21968775,1575.8,1575.4,6.34216]
[1745292037500,12.42618775,1575.8,1575.6,0.8206]
[1745292037705,0.26563935,1575.7,1575.6,13.83296996]
[1745292037905,7.13847611,1576.1,1575.7,9.34636055]
[1745292038242,0.26563935,1576.0,1575.9,0.8206]
[1745292038605,6.34529777,1576.0,1575.8,6.62563606]
[1745292038858,6.3455803,1575.9,1575.8,5.691]
[1745292039429,6.61121965,1575.9,1575.8,5.691]
[1745292043134,7.42591965,1575.9,1575.8,5.691]
[1745292045539,6.34710318,1575.6,1575.5,5.687]
[1745292045941,6.62174811,1575.6,1575.5,5.687]
[1745292055498,0.27464493,1575.6,1575.5,0.5687]
[1745292055698,0.27464493,1575.6,1575.5,16.91223227]
[1745292055862,6.34534172,1576.0,1575.7,0.8315]
[1745292056198,6.34560548,1575.9,1575.7,0.8315]
[1745292056398,12.69149815,1575.9,1575.7,0.8315]
[1745292056699,6.34560548,1575.9,1575.7,0.8315]
[1745292057391,6.34560548,1575.9,1575.6,0.8315]
[1745292057598,6.34598299,1575.8,1575.6,2.52269649]
[1745292060365,6.34582841,1575.9,1575.6,2.52269649]
[1745292060569,12.69170035,1575.9,1575.6,2.52269649]
[1745292060770,6.34582841,1575.9,1575.6,2.52269649]
[1745292061968,6.34612112,1575.8,1575.6,2.52269649]
[1745292063380,6.34612112,1575.8,1575.6,0.8315]
[1745292065175,6.34678852,1575.6,1575.5,8.687]
[1745292066602,6.34638573,1575.7,1575.5,8.687]
[1745292066900,6.34638573,1575.7,1575.5,5.687]
[1745292067092,0.26873168,1575.6,1575.5,5.687]
[1745292067484,6.34638573,1575.7,1575.5,5.687]
[1745292067700,0.26873168,1575.6,1575.5,5.687]
[1745292068070,6.34638573,1575.7,1575.5,5.687]
[1745292068270,0.26873168,1575.6,1575.5,5.687]
[1745292068605,12.69305179,1575.7,1575.5,5.687]
[1745292068804,0.26873168,1575.6,1575.5,5.687]
[1745292069106,6.34638573,1575.7,1575.5,5.687]
[1745292069399,0.26873168,1575.6,1575.5,5.687]
[1745292069803,6.34638573,1575.7,1575.5,5.687]
[1745292069999,0.26873168,1575.6,1575.5,5.687]
[1745292070804,6.34638573,1575.7,1575.5,5.687]
[1745292071007,0.26994151,1575.6,1575.5,5.687]
[1745292071207,0.26994151,1575.6,1575.5,14.02874867]
[1745292071409,12.42576034,1575.9,1575.5,20.37594003]
[1745292071711,12.42576034,1575.9,1575.6,6.34678582]
[1745292072005,6.08,1575.9,1575.7,7.13746108]
[1745292072769,6.08,1575.9,1575.7,0.7911]
[1745292072973,6.08,1575.9,1575.7,1.87146108]
[1745292073609,12.42569117,1575.9,1575.7,1.87146108]
[1745292073907,18.77158818,1575.9,1575.7,0.7911]
[1745292074109,12.42569117,1575.9,1575.6,4.45694498]
[1745292074486,12.42569117,1575.9,1575.6,0.7911]
[1745292074686,6.34621849,1575.8,1575.6,0.7911]
[1745292074895,6.34621849,1575.8,1575.5,7.68155731]
[1745292075287,19.57959037,1575.9,1575.5,14.09208191]
[1745292075487,19.57959037,1575.9,1575.5,14.02861751]
[1745292075800,6.34602761,1575.8,1575.5,14.02861751]
[1745292077118,6.34602761,1575.8,1575.5,7.68155731]
[1745292077413,6.34649936,1575.7,1575.5,6.4781]
[1745292077608,6.34649936,1575.7,1575.5,5.687]
[1745292078494,6.34623663,1575.8,1575.5,5.687]
[1745292078702,6.34623663,1575.8,1575.5,12.82524884]
[1745292079202,12.42577898,1575.9,1575.5,12.82514758]
[1745292079377,18.77166867,1575.9,1575.5,14.47424684]
[1745292079979,12.42577898,1575.9,1575.5,14.47415266]
[1745292080416,12.42577898,1575.9,1575.6,6.34677862]
[1745292081123,6.34605798,1575.8,1575.5,8.12719926]
[1745292081283,6.08,1575.9,1575.5,5.687]
[1745292081284,6.34678852,1575.6,1575.5,5.687]
[1745292082492,6.61673003,1575.6,1575.5,5.687]
[1745292093599,12.69673003,1575.6,1575.5,5.687]
[1745292094539,6.34759426,1575.4,1575.3,0.33040404]
[1745292094749,6.3479972,1575.3,1575.2,5.684]
[1745292095335,6.34880325,1575.1,1575.0,0.33056505]
[1745292095698,6.61659393,1575.1,1575.0,0.33056505]
[1745292095901,0.26779068,1575.1,1575.0,0.33056505]
[1745292096137,6.3485174,1575.2,1575.0,0.33056505]
[1745292096341,0.26779068,1575.1,1575.0,0.33056505]
[1745292096502,12.42817995,1575.3,1575.0,7.3584579]
[1745292096706,0.26779068,1575.2,1575.1,10.85010916]
[1745292097057,0.26779068,1575.2,1575.1,10.78662345]
[1745292099046,0.26779068,1575.2,1575.1,13.78662345]
[1745292099218,0.26779068,1575.2,1575.1,13.1701683]
[1745292099438,12.42616565,1575.8,1575.5,0.7781]
[1745292099746,6.34616565,1575.8,1575.6,5.684]
[1745292100259,6.34638573,1575.7,1575.6,5.684]
[1745292102051,6.34616565,1575.8,1575.6,5.684]
[1745292102264,12.69166552,1575.9,1575.6,6.33021]
[1745292102415,6.34579746,1575.9,1575.6,6.33021]
[1745292103351,6.34519219,1576.0,1575.7,7.12423404]
[1745292103645,6.34519219,1576.0,1575.7,3.7781]
[1745292104237,6.34519219,1576.0,1575.7,10.1244825]
[1745292104439,6.34519219,1576.0,1575.8,1.01244825]
[1745292106349,7.17068299,1576.1,1575.8,1.01244825]
[1745292106522,6.34498299,1576.1,1575.8,1.01244825]
[1745292106855,6.34533674,1576.0,1575.8,1.01244825]
[1745292107223,7.17107606,1576.0,1575.7,0.7781]
[1745292107533,6.34578142,1575.9,1575.7,0.7781]
[1745292107734,7.17106058,1576.0,1575.7,0.7781]
[1745292108142,13.51652277,1576.0,1575.7,0.7781]
[1745292108454,6.34536058,1576.0,1575.7,0.7781]
[1745292108746,12.69087221,1576.0,1575.7,0.7781]
[1745292109351,6.34560494,1575.9,1575.7,0.7781]
[1745292110167,12.69228021,1575.8,1575.6,5.684]
[1745292110360,6.34638573,1575.7,1575.6,5.684]
[1745292110832,6.34598868,1575.8,1575.6,5.684]
[1745292111456,6.34638573,1575.7,1575.6,5.684]
[1745292111836,6.34598868,1575.8,1575.6,5.684]
[1745292112570,0.26940385,1575.7,1575.6,5.684]
[1745292114333,6.61578958,1575.7,1575.6,5.684]
[1745292116956,9.94368536,1575.7,1575.6,5.684]
[1745292119573,6.61578958,1575.7,1575.6,5.684]
[1745292120067,0.26940385,1575.7,1575.6,5.684]
[1745292120437,6.61578958,1575.7,1575.6,5.684]
[1745292130502,0.26940385,1575.7,1575.6,19.53939846]
[1745292130713,0.26940385,1575.7,1575.6,19.4759335]
[1745292130905,12.42453897,1576.2,1575.8,6.34564739]
[1745292131111,6.34453897,1576.2,1575.9,7.12471507]
[1745292131258,6.34453897,1576.2,1576.0,5.68]
[1745292131456,7.22307578,1576.4,1576.0,12.02514006]
[1745292131662,6.44367578,1576.4,1576.2,0.7793]
[1745292133263,6.34397005,1576.3,1576.2,0.7793]
[1745292133465,6.34397005,1576.3,1576.1,1.98181401]
[1745292133658,0.1,1576.4,1576.0,5.68]
[1745292133899,6.34477507,1576.1,1576.0,5.68]
[1745292135664,7.12417507,1576.1,1576.0,5.68]
[1745292137741,6.34598299,1575.8,1575.7,5.675]
[1745292138436,7.12538299,1575.8,1575.7,5.675]
[1745292142621,7.39639975,1575.8,1575.7,5.675]
[1745292144026,0.27101676,1575.8,1575.7,6.2425]
[1745292144600,0.27101676,1575.8,1575.7,7.0062]
[1745292145942,6.61699975,1575.8,1575.7,5.675]
[1745292152543,7.37679975,1575.8,1575.7,5.675]
[1745292156653,6.61699975,1575.8,1575.7,5.675]
[1745292158852,6.34664626,1575.7,1575.6,5.675]
[1745292159224,6.61699102,1575.7,1575.6,5.675]
[1745292160764,0.27034476,1575.7,1575.6,20.0870035]
[1745292161120,6.34491839,1576.1,1575.8,0.7555]
[1745292161454,6.8378,1576.3,1575.8,10.76716922]
[1745292161455,0.27034476,1576.0,1575.8,10.76716922]
[1745292161657,0.27034476,1576.0,1575.9,13.83037375]
[1745292161854,12.78759632,1576.4,1576.1,3.0]
[1745292162027,6.34397005,1576.3,1576.2,5.675]
[1745292166971,7.10177005,1576.3,1576.2,5.675]
[1745292167185,7.10177005,1576.3,1575.6,3.64387]
[1745292167186,6.34532017,1576.0,1575.9,5.675]
[1745292167349,6.34489496,1576.1,1575.9,5.675]
[1745292169178,12.42457493,1576.2,1575.9,5.675]
[1745292169692,6.34489251,1576.1,1575.9,5.675]
[1745292169851,6.34517766,1576.0,1575.9,5.675]
[1745292172785,6.61968826,1576.0,1575.9,5.675]
[1745292173872,0.2745106,1576.0,1575.9,5.675]
[1745292175639,6.61968826,1576.0,1575.9,5.675]
[1745292175907,0.2745106,1576.0,1575.9,5.675]
[1745292178091,6.61968826,1576.0,1575.9,5.675]
[1745292178914,0.2745106,1576.0,1575.9,5.675]
[1745292179721,6.61968826,1576.0,1575.9,5.675]
[1745292180516,0.2745106,1576.0,1575.9,5.675]
[1745292181432,0.2745106,1576.0,1575.9,6.4438]
[1745292181831,18.76929278,1576.2,1575.9,7.72275908]
[1745292181832,12.42463054,1576.2,1575.9,7.72275908]
[1745292182134,0.27545101,1576.1,1575.9,7.72275908]
[1745292182331,0.27545101,1576.1,1576.0,10.17742605]
[1745292182535,6.4436824,1576.4,1576.0,10.17722296]
[1745292182829,12.78752626,1576.4,1576.0,10.11377457]
[1745292183033,6.61945007,1576.3,1576.0,10.11377457]
[1745292183204,6.61945007,1576.3,1576.0,3.7688]
[1745292183731,12.9637044,1576.3,1576.0,3.7688]
[1745292183928,6.61945007,1576.3,1576.0,3.7688]
[1745292184132,6.34455213,1576.2,1576.0,3.7688]
[1745292184502,6.34399906,1576.3,1576.0,3.7688]
[1745292184831,12.6882551,1576.3,1576.0,5.90564895]
[1745292185037,6.61986214,1576.2,1576.0,5.84220505]
[1745292186045,0.27545101,1576.2,1576.0,5.84220505]
[1745292186551,0.27545101,1576.2,1576.0,5.90565023]
[1745292187152,0.27545101,1576.2,1576.0,5.84220505]
[1745292188146,6.34477507,1576.1,1575.9,6.95395908]
[1745292188337,6.34477507,1576.1,1575.9,5.675]
[1745292188740,0.27545101,1576.0,1575.9,8.675]
[1745292189450,12.68908926,1576.2,1575.9,8.675]
[1745292189651,0.27545101,1576.1,1575.9,8.675]
[1745292189852,6.34439375,1576.2,1575.9,10.25395881]
[1745292190041,0.27545101,1576.1,1575.9,10.25395881]
[1745292190241,6.34439375,1576.2,1575.9,16.59950792]
[1745292190453,0.27545101,1576.1,1575.9,16.59950792]
[1745292190642,6.34439375,1576.2,1575.9,16.59950792]
[1745292190845,0.27545101,1576.1,1575.9,16.59950792]
[1745292191021,6.34439375,1576.2,1575.9,16.59950792]
[1745292191221,0.27545101,1576.1,1575.9,16.59950792]
[1745292191529,12.42416535,1576.3,1576.0,1.65995079]
[1745292191722,12.42416535,1576.3,1576.0,0.8619448]
[1745292192437,12.42416535,1576.3,1576.0,7.14355895]
[1745292192628,12.42416535,1576.3,1576.0,7.20700461]
[1745292192830,12.42416535,1576.3,1576.0,7.14355895]
[1745292193369,6.34416535,1576.3,1576.0,7.14355895]
[1745292193582,6.34416535,1576.3,1576.1,0.7143559]
[1745292193745,6.34416535,1576.3,1576.0,7.14355895]
[1745292194386,6.34416535,1576.3,1576.0,0.7985]
[1745292195480,6.34416535,1576.3,1576.0,7.14366718]
[1745292197690,12.68850432,1576.3,1576.0,0.7985]
[1745292198060,6.34416535,1576.3,1576.0,0.7985]
[1745292198265,0.1,1576.4,1576.1,0.7985]
[1745292198491,0.1,1576.4,1576.2,6.3442546]
[1745292198668,0.1,1576.4,1576.3,0.63442546]
[1745292198994,0.1,1576.4,1576.1,13.48743398]
[1745292199168,0.1,1576.4,1576.1,7.14292613]
[1745292199371,6.44378756,1576.4,1576.1,0.7985]
[1745292199889,6.44378756,1576.4,1576.1,7.14312391]
[1745292200591,13.61073831,1576.4,1576.1,0.7985]
[1745292200826,7.26678756,1576.4,1576.1,1.51285318]
[1745292201805,7.26678756,1576.4,1576.1,1.57629167]
[1745292202257,7.26678756,1576.4,1576.1,7.92105668]
[1745292202459,6.44378756,1576.4,1576.1,7.92105668]
[1745292202689,0.27867476,1576.3,1576.1,7.92105668]
[1745292202898,0.27867476,1576.3,1576.2,0.79210567]
[1745292206007,0.27867476,1576.3,1576.1,1.51285318]
[1745292206403,0.27867476,1576.3,1576.1,1.57629136]
[1745292207203,0.27867476,1576.3,1576.2,5.664]
[1745292207403,6.62264481,1576.3,1576.2,5.664]
[1745292208498,7.38684481,1576.3,1576.2,5.664]
[1745292208706,8.76988861,1576.3,1576.2,5.664]
[1745292209505,7.38684481,1576.3,1576.2,5.664]
[1745292211503,0.27867476,1576.3,1576.2,5.664]
[1745292212238,0.27867476,1576.3,1576.2,19.47331752]
[1745292212535,0.1,1576.4,1576.3,9.34397005]
[1745292212704,0.1,1576.4,1576.3,10.14307005]
[1745292212905,0.38015201,1576.4,1576.3,13.20875566]
[1745292213217,0.1,1576.4,1576.3,13.20875566]
[1745292213423,0.38015201,1576.4,1576.3,13.20875566]
[1745292213603,0.1,1576.4,1576.3,13.20875566]
[1745292214107,0.38015201,1576.4,1576.3,13.20875566]
[1745292214437,0.1,1576.4,1576.3,13.20875566]
[1745292214737,0.1,1576.4,1576.3,12.72479881]
[1745292214921,0.38015201,1576.4,1576.3,12.72479881]
[1745292215230,0.1,1576.4,1576.3,12.72479881]
[1745292215430,0.38015201,1576.4,1576.3,12.72479881]
[1745292215591,0.1,1576.4,1576.3,12.72479881]
[1745292216544,0.38015201,1576.4,1576.3,12.72479881]
[1745292216697,0.1,1576.4,1576.3,12.72479881]
[1745292217597,0.38015201,1576.4,1576.3,12.72479881]
[1745292219728,0.38015201,1576.4,1576.3,6.38082876]
[1745292220031,0.38015201,1576.4,1576.3,5.58172876]
[1745292220418,0.38015201,1576.4,1576.3,2.58172876]
[1745292220625,6.7240067,1576.4,1576.3,5.663]
[1745292223624,0.38015201,1576.4,1576.3,5.663]
[1745292224737,0.38015201,1576.4,1576.3,6.4618]
[1745292224937,0.38015201,1576.4,1576.3,12.80577005]
[1745292225100,0.38015201,1576.4,1576.3,14.72075961]
[1745292225302,0.38015201,1576.4,1576.3,8.37678956]
[1745292225945,0.38015201,1576.4,1576.3,17.72075961]
[1745292229941,0.1,1576.4,1576.3,17.72075961]
[1745292230107,0.38364285,1576.4,1576.3,17.72075961]
[1745292230432,0.1,1576.4,1576.3,17.72075961]
[1745292230634,0.38364285,1576.4,1576.3,17.72075961]
[1745292230800,0.1,1576.4,1576.3,17.72075961]
[1745292231000,0.38364285,1576.4,1576.3,17.72075961]
[1745292231203,0.1,1576.4,1576.3,17.72075961]
[1745292231435,0.38364285,1576.4,1576.3,17.72075961]
[1745292231638,0.1,1576.4,1576.3,17.72075961]
[1745292231846,0.38364285,1576.4,1576.3,17.72075961]
[1745292232049,0.1,1576.4,1576.3,17.72075961]
[1745292232645,0.38364285,1576.4,1576.3,17.72075961]
[1745292232805,0.1,1576.4,1576.3,17.72075961]
[1745292233008,0.38364285,1576.4,1576.3,17.72075961]
[1745292233203,0.1,1576.4,1576.3,17.72075961]
[1745292233429,0.38364285,1576.4,1576.3,17.72075961]
[1745292233636,0.1,1576.4,1576.3,17.72075961]
[1745292233837,0.38364285,1576.4,1576.3,17.72075961]
[1745292234011,0.1,1576.4,1576.3,17.72075961]
[1745292234335,0.1,1576.4,1576.3,14.72075961]
[1745292234639,0.38364285,1576.4,1576.3,14.72075961]
[1745292234837,0.1,1576.4,1576.3,14.72075961]
[1745292235040,0.38364285,1576.4,1576.3,14.72075961]
[1745292235241,0.1,1576.4,1576.3,14.72075961]
[1745292235708,0.38364285,1576.4,1576.3,14.72075961]
[1745292236034,0.1,1576.4,1576.3,14.72075961]
[1745292236238,0.38444826,1576.4,1576.3,14.72075961]
[1745292236430,0.1,1576.4,1576.3,14.72075961]
[1745292236606,0.38444826,1576.4,1576.3,8.37678956]
[1745292236805,0.1,1576.4,1576.3,7.57798956]
[1745292237039,0.38444826,1576.4,1576.3,7.57798956]
[1745292237239,0.1,1576.4,1576.3,7.57798956]
[1745292237427,0.38444826,1576.4,1576.3,7.57798956]
[1745292237635,0.1,1576.4,1576.3,7.57798956]
[1745292237937,0.1,1576.4,1576.3,10.64141674]
[1745292238141,0.38444826,1576.4,1576.3,10.64141674]
[1745292238374,0.1,1576.4,1576.3,10.64141674]
[1745292238647,0.38444826,1576.4,1576.3,10.64141674]
[1745292238941,0.38444826,1576.4,1576.0,7.36289337]
[1745292238942,7.49231588,1576.4,1576.0,4.94704129]
[1745292239141,1.14874826,1576.4,1576.1,12.00261428]
[1745292240144,1.14874826,1576.4,1576.1,18.34714341]
[1745292240322,0.38444826,1576.4,1576.3,7.15737005]
[1745292240527,0.38444826,1576.4,1576.3,9.18045623]
[1745292240710,0.38444826,1576.4,1576.3,2.02308618]
[1745292240910,0.38444826,1576.4,1576.2,9.34421049]
[1745292241408,0.38444826,1576.4,1576.2,9.34412515]
[1745292242919,0.38444826,1576.4,1576.2,3.0]
[1745292243121,0.38444826,1576.4,1576.1,16.48185286]
[1745292243448,6.34437254,1576.2,1576.1,5.658]
[1745292243762,6.19437254,1576.2,1576.1,5.658]
[1745292243927,6.4788208,1576.2,1576.1,5.658]
[1745292244433,8.60183251,1576.2,1576.1,5.658]
[1745292245063,7.2431208,1576.2,1576.1,5.658]
[1745292245627,0.28444826,1576.2,1576.1,5.658]
[1745292245930,19.63206165,1576.4,1576.1,5.658]
[1745292246129,0.2781376,1576.2,1576.1,5.658]
[1745292246453,6.34401619,1576.3,1576.1,5.658]
[1745292246637,0.2781376,1576.2,1576.1,5.658]
[1745292247955,0.1281376,1576.2,1576.1,5.658]
[1745292248158,0.2656376,1576.2,1576.1,5.658]
[1745292248652,0.1375,1576.2,1576.1,14.66019157]
[1745292248838,6.9443,1576.4,1576.1,14.66019157]
[1745292249042,0.2656376,1576.2,1576.1,14.66019157]
[1745292249246,0.1,1576.4,1576.2,6.34434932]
[1745292249853,0.1,1576.4,1576.2,6.34421348]
[1745292250034,0.1,1576.4,1576.3,10.7076634]
[1745292250437,0.1,1576.4,1576.3,10.64423638]
[1745292250975,0.1,1576.4,1576.3,0.63442135]
[1745292251270,0.1,1576.4,1576.2,9.34423771]
[1745292251678,0.1,1576.4,1576.3,6.40740103]
[1745292252030,0.1,1576.4,1576.3,10.79941503]
[1745292252626,0.1,1576.4,1576.3,4.45544498]
[1745292252832,0.1,1576.4,1576.2,9.34423771]
[1745292253169,0.1,1576.4,1576.3,0.93442377]
[1745292253401,0.1,1576.4,1576.3,7.27839382]
[1745292253571,0.1,1576.4,1576.3,14.79726709]
[1745292253746,0.1,1576.4,1576.3,14.7338388]
[1745292255444,0.3656376,1576.4,1576.3,14.7338388]
[1745292258075,0.3656376,1576.4,1576.3,15.2838388]
[1745292260578,0.3656376,1576.4,1576.3,14.7338388]
[1745292260788,0.3656376,1576.4,1576.3,8.38986875]
[1745292261088,0.3715456,1576.4,1576.3,14.04786875]
[1745292261463,0.3715456,1576.4,1576.3,13.25826875]
[1745292261859,0.3715456,1576.4,1576.3,19.6022388]
[1745292262687,0.3715456,1576.4,1576.3,20.1522388]
[1745292263484,0.3715456,1576.4,1576.3,20.9418388]
[1745292273308,0.37342468,1576.4,1576.3,20.9418388]
[1745292275523,0.37342468,1576.4,1576.3,7.60026875]
[1745292275680,0.37342468,1576.4,1576.3,8.653]
[1745292276522,0.37342468,1576.4,1576.3,14.99697005]
[1745292278721,0.37342468,1576.4,1576.3,15.54697005]
[1745292278923,0.37342468,1576.4,1576.3,16.31577005]
[1745292280411,0.1,1576.4,1576.3,16.31577005]
[1745292280600,0.1,1576.4,1576.3,21.03964939]
[1745292280790,0.37342468,1576.4,1576.3,21.03964939]
[1745292280991,0.1,1576.4,1576.3,21.03964939]
[1745292281222,0.37342468,1576.4,1576.3,21.03964939]
[1745292281418,0.1,1576.4,1576.3,21.03964939]
[1745292281910,0.37342468,1576.4,1576.3,21.03964939]
[1745292284027,0.37342468,1576.4,1576.3,24.70549437]
[1745292284320,0.37342468,1576.4,1576.3,21.03964939]
[1745292284513,0.1,1576.4,1576.3,21.03964939]
[1745292286528,6.3409353,1577.1,1576.8,6.34178961]
[1745292286529,0.757,1577.1,1576.8,6.34178961]
[1745292286733,0.27530351,1577.0,1576.9,5.652]
[1745292287719,1.03230351,1577.0,1576.9,5.652]
[1745292289742,7.3734576,1577.0,1576.9,5.652]
[1745292290823,1.03230351,1577.0,1576.9,5.652]
[1745292292960,0.27530351,1577.0,1576.9,20.1862766]
[1745292293134,6.43960087,1577.4,1576.9,20.1862766]
[1745292293135,0.757,1577.3,1577.1,6.34063715]
[1745292293336,0.27530351,1577.2,1577.1,6.34063715]
[1745292293527,0.27530351,1577.2,1577.1,9.40403004]
[1745292293719,0.27530351,1577.2,1577.1,11.34511447]
[1745292293921,0.27530351,1577.2,1577.1,12.69431447]
[1745292294140,0.1,1577.4,1577.2,6.34032864]
[1745292294345,0.1,1577.4,1577.3,9.31284498]
[1745292294519,0.1,1577.4,1577.3,5.647]
[1745292294520,0.8874,1577.4,1577.3,5.647]
[1745292298858,7.22694608,1577.4,1577.3,5.647]
[1745292299081,6.34001462,1577.3,1577.1,3.0]
[1745292299231,0.7677,1577.2,1577.1,3.0]
[1745292299425,0.7677,1577.2,1577.1,8.646]
[1745292300373,7.20724608,1577.4,1577.1,12.37524117]
[1745292301677,0.1,1577.4,1577.2,10.12325782]
[1745292301841,0.1,1577.4,1577.3,1.07571622]
[1745292304076,0.1,1577.4,1577.3,0.06339044]
[1745292304371,0.1,1577.4,1577.2,3.47851117]
[1745292305543,0.1,1577.4,1577.2,3.0]
[1745292305544,0.7677,1577.3,1577.2,3.0]
[1745292307649,1.04984485,1577.3,1577.2,3.0]
[1745292308495,7.38998944,1577.3,1577.1,5.646]
[1745292308788,7.38998944,1577.3,1576.9,0.91346737]
[1745292308789,0.7677,1577.1,1576.9,0.91346737]
[1745292308943,7.10860656,1577.1,1577.0,5.646]
[1745292310091,7.39075141,1577.1,1577.0,5.646]
[1745292310882,0.7668,1576.7,1576.5,26.885988]
[1745292311061,0.7668,1576.9,1576.6,0.06342218]
[1745292311260,0.7668,1576.9,1576.6,6.40603077]
[1745292311485,0.7668,1576.9,1576.6,6.82536414]
[1745292311672,0.7668,1576.9,1576.7,0.68253641]
[1745292312299,7.10867113,1576.9,1576.7,0.68253641]
[1745292312804,0.7668,1576.9,1576.7,0.74595153]
[1745292312960,7.10837343,1576.9,1576.7,0.74595153]
[1745292313160,7.10837343,1576.9,1576.7,0.68253641]
[1745292313376,13.18819255,1577.0,1576.7,0.68253641]
[1745292313574,6.8468,1577.0,1576.7,10.69054515]
[1745292313786,6.8468,1577.0,1576.8,1.06905451]
[1745292314064,6.8468,1577.0,1576.9,5.646]
[1745292314265,7.10795409,1577.0,1576.9,5.646]
[1745292317700,0.7668,1577.0,1576.9,5.646]
[1745292317873,6.3408199,1577.1,1576.9,6.31750545]
[1745292318910,13.4480428,1577.2,1576.9,9.98335043]
[1745292319079,7.10735493,1577.2,1576.9,9.98335043]
[1745292319262,6.34095215,1577.1,1576.9,9.98335043]
[1745292319467,6.34095215,1577.1,1576.9,6.31750545]
[1745292319679,6.34095215,1577.1,1577.0,0.63175054]
[1745292319881,6.34115409,1577.0,1576.9,5.646]
[1745292320103,7.10795409,1577.0,1576.9,5.646]
[1745292322607,7.38661177,1577.0,1576.9,5.646]
[1745292328823,7.38661177,1577.0,1576.6,3.33016482]
[1745292329029,7.17236062,1576.7,1576.6,0.33016482]
[1745292329322,7.17180138,1576.9,1576.6,5.97216482]
[1745292329636,6.3420691,1576.8,1576.6,5.97216482]
[1745292329930,6.61737261,1576.8,1576.6,5.97216482]
[1745292330102,6.61737261,1576.8,1576.6,8.6603813]
[1745292331229,12.95967626,1576.8,1576.6,8.6603813]
[1745292331826,6.34236062,1576.7,1576.6,8.6603813]
[1745292332423,6.61766413,1576.7,1576.6,8.6603813]
[1745292333342,7.44766413,1576.7,1576.6,5.97216482]
[1745292338647,0.27530351,1576.7,1576.6,5.97216482]
[1745292338804,0.27530351,1576.7,1576.6,13.4385098]
[1745292339314,6.34173183,1576.9,1576.6,13.4385098]
[1745292339514,0.27355893,1576.7,1576.6,13.4385098]
[1745292339716,6.34173183,1576.9,1576.6,21.75936839]
[1745292340120,0.27355893,1576.8,1576.6,21.75936839]
[1745292340537,6.34173183,1576.9,1576.6,21.75936839]
[1745292340728,0.27355893,1576.7,1576.6,21.75936839]
[1745292340928,6.34173183,1576.9,1576.6,21.75936839]
[1745292341134,0.27355893,1576.7,1576.6,21.75936839]
[1745292341440,6.34173183,1576.9,1576.6,15.41665456]
[1745292341646,0.27355893,1576.7,1576.6,15.41665456]
[1745292341842,6.34173183,1576.9,1576.6,15.41665456]
[1745292342009,0.27355893,1576.7,1576.6,15.41665456]
[1745292342210,6.34173183,1576.9,1576.6,15.41665456]
[1745292342410,0.27355893,1576.8,1576.7,1.54166546]
[1745292342922,12.68357253,1576.9,1576.7,1.54166546]